[Event "*** Titled Tuesday 3|2 Blitz"]
[Site "Chess.com"]
[Date "2017.06.06"]
[Round "9"]
[White "SabinaFoisor"]
[Black "nurmiTV"]
[Result "1-0"]
[WhiteElo "2312"]
[BlackElo "2449"]
[TimeControl "180+2"]
[EndTime "15:47:18 PDT"]
[Termination "SabinaFoisor won by resignation"]

1. d4 {[%clk 0:03:02]} 1... Nf6 {[%clk 0:02:58.2]} 2. Bf4 {[%clk 0:03:01.2]}
2... d5 {[%clk 0:02:58.4]} 3. e3 {[%clk 0:03:00.3]} 3... c5 {[%clk 0:02:58.8]}
4. c3 {[%clk 0:02:59.8]} 4... Nc6 {[%clk 0:02:55.9]} 5. Nf3 {[%clk 0:02:59.6]}
5... Qb6 {[%clk 0:02:54.5]} 6. Qb3 {[%clk 0:02:59.6]} 6... c4 {[%clk 0:02:55.4]}
7. Qxb6 {[%clk 0:02:52.1]} 7... axb6 {[%clk 0:02:57.4]} 8. Na3 {[%clk
0:02:44.3]} 8... Ra5 {[%clk 0:02:41.5]} 9. Be2 {[%clk 0:02:31.8]} 9... Bf5
{[%clk 0:02:39.5]} 10. Bc7 {[%clk 0:02:20.6]} 10... e5 {[%clk 0:01:50.9]} 11.
Bxb6 {[%clk 0:02:00.3]} 11... Bxa3 {[%clk 0:01:39.8]} 12. bxa3 {[%clk
0:01:42.3]} 12... Rxa3 {[%clk 0:01:35.3]} 13. Bc5 {[%clk 0:01:35.2]} 13... Rxc3
{[%clk 0:01:31]} 14. Nxe5 {[%clk 0:01:28.3]} 14... Nd7 {[%clk 0:01:19.9]} 15.
Nxc6 {[%clk 0:01:13.2]} 15... Nxc5 {[%clk 0:01:18.3]} 16. Nb4 {[%clk 0:01:10.3]}
16... Ne4 {[%clk 0:01:04.8]} 17. Nxd5 {[%clk 0:01:10.3]} 17... Rc2 {[%clk
0:01:06.3]} 18. f3 {[%clk 0:01:06.1]} 18... Nc3 {[%clk 0:00:47.5]} 19. Nxc3
{[%clk 0:01:02.8]} 19... Rxc3 {[%clk 0:00:49.5]} 20. e4 {[%clk 0:01:04]} 20...
Bd7 {[%clk 0:00:49.2]} 21. Kd2 {[%clk 0:01:03.7]} 21... Ra3 {[%clk 0:00:44.8]}
22. Bxc4 {[%clk 0:01:03.9]} 22... O-O {[%clk 0:00:46.3]} 23. Rhb1 {[%clk
0:01:03.7]} 23... Rb8 {[%clk 0:00:44]} 24. Rb4 {[%clk 0:01:02.2]} 1-0

[Event "*** Titled Tuesday 3|2 Blitz"]
[Site "Chess.com"]
[Date "2017.06.06"]
[Round "9"]
[White "AdrianaNikolova"]
[Black "Enzy63"]
[Result "1-0"]
[WhiteElo "2306"]
[BlackElo "2044"]
[TimeControl "180+2"]
[EndTime "15:47:31 PDT"]
[Termination "AdrianaNikolova won by resignation"]

1. e4 {[%clk 0:03:02]} 1... e5 {[%clk 0:03:00.3]} 2. Nf3 {[%clk 0:03:02.4]} 2...
Nc6 {[%clk 0:03:01.3]} 3. Nc3 {[%clk 0:03:03.2]} 3... Nf6 {[%clk 0:03:01.1]} 4.
Bb5 {[%clk 0:03:04]} 4... Bc5 {[%clk 0:03:01.3]} 5. Nxe5 {[%clk 0:03:02.4]} 5...
Nxe5 {[%clk 0:03:01.1]} 6. d4 {[%clk 0:03:02.8]} 6... a6 {[%clk 0:03:02.2]} 7.
Be2 {[%clk 0:03:02.6]} 7... Bd6 {[%clk 0:03:02.5]} 8. f4 {[%clk 0:03:00.3]} 8...
Nc6 {[%clk 0:02:57.7]} 9. e5 {[%clk 0:03:01.2]} 9... Be7 {[%clk 0:02:58.4]} 10.
d5 {[%clk 0:03:00.4]} 10... Na5 {[%clk 0:01:59.1]} 11. exf6 {[%clk 0:02:57.1]}
11... Bxf6 {[%clk 0:02:00.1]} 12. d6 {[%clk 0:02:58.1]} 12... cxd6 {[%clk
0:01:48.6]} 13. Qxd6 {[%clk 0:03:00]} 13... Be7 {[%clk 0:01:49.5]} 14. Qe5
{[%clk 0:02:56.6]} 14... O-O {[%clk 0:01:43.2]} 15. O-O {[%clk 0:02:49.7]} 15...
Nc6 {[%clk 0:01:40.1]} 16. Qh5 {[%clk 0:02:47.8]} 16... g6 {[%clk 0:01:22.8]}
17. Qh6 {[%clk 0:02:47]} 17... d5 {[%clk 0:01:17.7]} 18. Rd1 {[%clk 0:02:46.8]}
18... d4 {[%clk 0:01:11.3]} 19. Ne4 {[%clk 0:02:46.9]} 19... Bf5 {[%clk
0:01:01.8]} 20. Ng5 {[%clk 0:02:47.2]} 20... Bxg5 {[%clk 0:01:00.8]} 21. fxg5
{[%clk 0:02:49.1]} 21... Bxc2 {[%clk 0:01:01.5]} 22. Rd2 {[%clk 0:02:41]} 22...
d3 {[%clk 0:00:58.1]} 23. Bf3 {[%clk 0:02:41.7]} 23... Re8 {[%clk 0:00:49.6]}
24. Qh4 {[%clk 0:02:40.3]} 24... Qd4+ {[%clk 0:00:47.3]} 25. Qxd4 {[%clk
0:02:37.9]} 25... Nxd4 {[%clk 0:00:49.2]} 26. Kf2 {[%clk 0:02:36]} 26... Nxf3
{[%clk 0:00:31.2]} 27. gxf3 {[%clk 0:02:34.7]} 27... Re5 {[%clk 0:00:29.2]} 28.
b3 {[%clk 0:01:53.4]} 28... Rxg5 {[%clk 0:00:28.1]} 29. Rxc2 {[%clk 0:01:51.7]}
29... dxc2 {[%clk 0:00:11.8]} 30. Bxg5 {[%clk 0:01:51.8]} 1-0

[Event "*** Titled Tuesday 3|2 Blitz"]
[Site "Chess.com"]
[Date "2017.06.06"]
[Round "9"]
[White "hassler2"]
[Black "Blitzking4444"]
[Result "1-0"]
[WhiteElo "2295"]
[BlackElo "2017"]
[TimeControl "180+2"]
[EndTime "15:47:35 PDT"]
[Termination "hassler2 won by checkmate"]

1. Na3 {[%clk 0:02:52.1]} 1... e5 {[%clk 0:02:53.5]} 2. b3 {[%clk 0:02:52.8]}
2... Nf6 {[%clk 0:02:43.6]} 3. Bb2 {[%clk 0:02:53.7]} 3... Nc6 {[%clk
0:02:42.7]} 4. e3 {[%clk 0:02:53.7]} 4... a6 {[%clk 0:02:35.7]} 5. Nc4 {[%clk
0:02:45.6]} 5... d6 {[%clk 0:02:20.5]} 6. Nf3 {[%clk 0:02:39]} 6... b5 {[%clk
0:02:19]} 7. Na3 {[%clk 0:02:38]} 7... e4 {[%clk 0:01:59.5]} 8. Ng1 {[%clk
0:02:34.9]} 8... d5 {[%clk 0:01:46.4]} 9. Nb1 {[%clk 0:02:28.4]} 9... Bd6 {[%clk
0:01:33.9]} 10. Ne2 {[%clk 0:02:26.8]} 10... Qe7 {[%clk 0:01:26.1]} 11. h3
{[%clk 0:02:24.4]} 11... O-O {[%clk 0:01:22.8]} 12. d4 {[%clk 0:02:24.2]} 12...
g6 {[%clk 0:01:10.5]} 13. Nd2 {[%clk 0:02:21.9]} 13... Rb8 {[%clk 0:00:51]} 14.
g3 {[%clk 0:02:22.6]} 14... h5 {[%clk 0:00:47.6]} 15. Nf4 {[%clk 0:02:23.3]}
15... Bxf4 {[%clk 0:00:41.3]} 16. gxf4 {[%clk 0:02:22.5]} 16... Be6 {[%clk
0:00:34.3]} 17. a3 {[%clk 0:02:10.4]} 17... Ne8 {[%clk 0:00:31.5]} 18. b4 {[%clk
0:02:09.2]} 18... Nd6 {[%clk 0:00:30.5]} 19. Nb3 {[%clk 0:02:07.9]} 19... Ra8
{[%clk 0:00:14.3]} 20. Be2 {[%clk 0:02:01.5]} 20... Nb8 {[%clk 0:00:11.8]} 21.
Rg1 {[%clk 0:02:00.7]} 21... Kg7 {[%clk 0:00:04.5]} 22. Bxh5 {[%clk 0:01:57.7]}
22... Bxh3 {[%clk 0:00:04.3]} 23. Be2 {[%clk 0:01:54.4]} 23... Bf5 {[%clk
0:00:04.6]} 24. Nc5 {[%clk 0:01:54.9]} 24... Rh8 {[%clk 0:00:03.6]} 25. Qd2
{[%clk 0:01:54.8]} 25... Nd7 {[%clk 0:00:02.9]} 26. O-O-O {[%clk 0:01:55.1]}
26... Nxc5 {[%clk 0:00:03.7]} 27. dxc5+ {[%clk 0:01:55]} 27... f6 {[%clk
0:00:04.5]} 28. cxd6 {[%clk 0:01:54]} 28... cxd6 {[%clk 0:00:06.4]} 29. Qxd5
{[%clk 0:01:53.7]} 29... Rh2 {[%clk 0:00:06.9]} 30. Qxf5 {[%clk 0:01:53.4]}
30... Rxf2 {[%clk 0:00:06.7]} 31. Qxg6+ {[%clk 0:01:52.8]} 31... Kf8 {[%clk
0:00:06.7]} 32. Qg8# {[%clk 0:01:52.7]} 1-0

[Event "*** Titled Tuesday 3|2 Blitz"]
[Site "Chess.com"]
[Date "2017.06.06"]
[Round "9"]
[White "yurisolo"]
[Black "tigra"]
[Result "1-0"]
[WhiteElo "2524"]
[BlackElo "2640"]
[TimeControl "180+2"]
[EndTime "15:47:55 PDT"]
[Termination "yurisolo won on time"]

1. e4 {[%clk 0:03:02]} 1... e6 {[%clk 0:03:00.1]} 2. d4 {[%clk 0:03:02.8]} 2...
d5 {[%clk 0:03:02]} 3. Nc3 {[%clk 0:03:03.4]} 3... Bb4 {[%clk 0:02:57.2]} 4. Ne2
{[%clk 0:03:04]} 4... dxe4 {[%clk 0:02:53.8]} 5. a3 {[%clk 0:03:04.6]} 5...
Bxc3+ {[%clk 0:02:54]} 6. Nxc3 {[%clk 0:03:05.4]} 6... Nc6 {[%clk 0:02:55.4]} 7.
d5 {[%clk 0:03:06.3]} 7... exd5 {[%clk 0:02:55.8]} 8. Qxd5 {[%clk 0:03:06.5]}
8... Nf6 {[%clk 0:02:56]} 9. Qxd8+ {[%clk 0:03:06.3]} 9... Nxd8 {[%clk
0:02:57.7]} 10. Bg5 {[%clk 0:03:02]} 10... Nd7 {[%clk 0:02:40.6]} 11. Nxe4
{[%clk 0:02:38.2]} 11... Ne6 {[%clk 0:02:40.7]} 12. Bh4 {[%clk 0:02:27.9]} 12...
f5 {[%clk 0:02:37.2]} 13. Ng5 {[%clk 0:02:25.2]} 13... Ndc5 {[%clk 0:02:14]} 14.
O-O-O {[%clk 0:02:16.7]} 14... h6 {[%clk 0:02:11]} 15. Nxe6 {[%clk 0:02:15.3]}
15... Bxe6 {[%clk 0:02:11.4]} 16. f3 {[%clk 0:02:11.3]} 16... Kf7 {[%clk
0:02:06.1]} 17. Bf2 {[%clk 0:02:07.5]} 17... Nd7 {[%clk 0:02:04.9]} 18. Bc4
{[%clk 0:01:50.7]} 18... Rhd8 {[%clk 0:01:31.6]} 19. Bxe6+ {[%clk 0:01:25.1]}
19... Kxe6 {[%clk 0:01:33.5]} 20. Rhe1+ {[%clk 0:01:27]} 20... Kf6 {[%clk
0:01:23.1]} 21. Bd4+ {[%clk 0:01:20.7]} 21... Kf7 {[%clk 0:00:43.5]} 22. Bxg7
{[%clk 0:01:20.9]} 22... h5 {[%clk 0:00:39.8]} 23. Bc3 {[%clk 0:01:11.9]} 1-0

[Event "*** Titled Tuesday 3|2 Blitz"]
[Site "Chess.com"]
[Date "2017.06.06"]
[Round "9"]
[White "andreimacovei2000"]
[Black "Fins0905"]
[Result "1-0"]
[WhiteElo "2393"]
[BlackElo "2399"]
[TimeControl "180+2"]
[EndTime "15:48:20 PDT"]
[Termination "andreimacovei2000 won by resignation"]

1. e4 {[%clk 0:03:02]} 1... c5 {[%clk 0:02:59]} 2. Nf3 {[%clk 0:03:02.7]} 2...
e6 {[%clk 0:02:59.6]} 3. d4 {[%clk 0:03:03.4]} 3... cxd4 {[%clk 0:03:00.9]} 4.
Nxd4 {[%clk 0:03:05.3]} 4... a6 {[%clk 0:03:01.9]} 5. Nc3 {[%clk 0:03:06.6]}
5... Qc7 {[%clk 0:03:02.9]} 6. Bd3 {[%clk 0:03:08.3]} 6... Nf6 {[%clk
0:03:03.5]} 7. f4 {[%clk 0:03:09.8]} 7... d6 {[%clk 0:02:59.2]} 8. Qf3 {[%clk
0:03:07.9]} 8... Nbd7 {[%clk 0:02:59.1]} 9. g4 {[%clk 0:03:06.5]} 9... Nc5
{[%clk 0:02:53.5]} 10. g5 {[%clk 0:03:07.7]} 10... Nfd7 {[%clk 0:02:52]} 11. Be3
{[%clk 0:03:09.2]} 11... b5 {[%clk 0:02:50.4]} 12. a3 {[%clk 0:03:09.9]} 12...
Bb7 {[%clk 0:02:50.2]} 13. O-O-O {[%clk 0:03:11.4]} 13... g6 {[%clk 0:02:45.9]}
14. Kb1 {[%clk 0:03:10.8]} 14... O-O-O {[%clk 0:02:39.1]} 15. h4 {[%clk
0:03:11.4]} 15... e5 {[%clk 0:02:11.7]} 16. Nde2 {[%clk 0:03:06.2]} 16... f5
{[%clk 0:01:55.5]} 17. gxf6 {[%clk 0:03:00.2]} 17... exf4 {[%clk 0:01:43]} 18.
Qxf4 {[%clk 0:02:59.4]} 18... Ne5 {[%clk 0:01:38.4]} 19. Nd4 {[%clk 0:02:54.2]}
19... h5 {[%clk 0:01:29.8]} 20. Qg3 {[%clk 0:02:52.9]} 20... Bh6 {[%clk
0:01:21.3]} 21. Bg5 {[%clk 0:02:52.3]} 21... Kb8 {[%clk 0:01:12.3]} 22. Nd5
{[%clk 0:02:51.9]} 22... Bxd5 {[%clk 0:01:11.7]} 23. exd5 {[%clk 0:02:53.8]}
23... Qf7 {[%clk 0:00:58.1]} 24. Rhe1 {[%clk 0:02:44.4]} 24... Ncxd3 {[%clk
0:00:42]} 25. Rxd3 {[%clk 0:02:30.8]} 25... Qxd5 {[%clk 0:00:32]} 26. Rdd1
{[%clk 0:02:20.1]} 26... Bxg5 {[%clk 0:00:29.3]} 27. hxg5 {[%clk 0:02:18.1]}
27... h4 {[%clk 0:00:29.9]} 28. Qh3 {[%clk 0:02:18.4]} 28... Rc8 {[%clk
0:00:27.1]} 29. Ne6 {[%clk 0:02:14.1]} 29... Qf3 {[%clk 0:00:24.8]} 30. Qxf3
{[%clk 0:01:48.9]} 30... Nxf3 {[%clk 0:00:26.7]} 31. Rf1 {[%clk 0:01:50.2]}
31... Ne5 {[%clk 0:00:20.1]} 32. f7 {[%clk 0:01:50.1]} 32... Nd7 {[%clk
0:00:15.5]} 33. Rxd6 {[%clk 0:01:48.6]} 33... Nf8 {[%clk 0:00:13.5]} 34. Nxf8
{[%clk 0:01:48.6]} 34... Rcxf8 {[%clk 0:00:14.1]} 35. Rxg6 {[%clk 0:01:47.2]}
35... h3 {[%clk 0:00:15.4]} 36. Rh6 {[%clk 0:01:44.2]} 36... Rxh6 {[%clk
0:00:11.8]} 37. gxh6 {[%clk 0:01:45.4]} 37... h2 {[%clk 0:00:13.2]} 38. h7
{[%clk 0:01:46.5]} 38... Kc7 {[%clk 0:00:10.2]} 39. Rh1 {[%clk 0:01:41.2]} 1-0

[Event "*** Titled Tuesday 3|2 Blitz"]
[Site "Chess.com"]
[Date "2017.06.06"]
[Round "9"]
[White "wonderfultime"]
[Black "Frolik67"]
[Result "1-0"]
[WhiteElo "2653"]
[BlackElo "2323"]
[TimeControl "180+2"]
[EndTime "15:48:30 PDT"]
[Termination "wonderfultime won by resignation"]

1. d4 {[%clk 0:03:01.9]} 1... e6 {[%clk 0:03:00.6]} 2. Nf3 {[%clk 0:02:59.1]}
2... d5 {[%clk 0:03:01.4]} 3. c4 {[%clk 0:02:59.8]} 3... c6 {[%clk 0:03:02.7]}
4. Nc3 {[%clk 0:03:00.6]} 4... dxc4 {[%clk 0:03:03]} 5. e3 {[%clk 0:02:27.1]}
5... b5 {[%clk 0:03:03.3]} 6. a4 {[%clk 0:02:19.6]} 6... Bb4 {[%clk 0:03:04]} 7.
Bd2 {[%clk 0:02:20.4]} 7... a5 {[%clk 0:03:04]} 8. axb5 {[%clk 0:02:13.8]} 8...
Bxc3 {[%clk 0:03:05]} 9. Bxc3 {[%clk 0:02:14.1]} 9... cxb5 {[%clk 0:03:05.8]}
10. b3 {[%clk 0:02:15.7]} 10... Bb7 {[%clk 0:03:05.2]} 11. bxc4 {[%clk
0:02:16.8]} 11... b4 {[%clk 0:03:06.7]} 12. Bb2 {[%clk 0:02:18.2]} 12... Nf6
{[%clk 0:03:07.7]} 13. Bd3 {[%clk 0:02:19.5]} 13... O-O {[%clk 0:03:07.2]} 14.
O-O {[%clk 0:02:20.8]} 14... Nbd7 {[%clk 0:03:07.8]} 15. Re1 {[%clk 0:02:11.1]}
15... Qc7 {[%clk 0:03:06.9]} 16. Nd2 {[%clk 0:02:02.8]} 16... a4 {[%clk
0:03:05.5]} 17. Qc2 {[%clk 0:01:53.2]} 17... a3 {[%clk 0:02:53.6]} 18. Bc1
{[%clk 0:01:54.4]} 18... e5 {[%clk 0:02:54.9]} 19. Nb3 {[%clk 0:01:50.5]} 19...
e4 {[%clk 0:02:51.3]} 20. Be2 {[%clk 0:01:50.3]} 20... Nb6 {[%clk 0:02:45.3]}
21. Bd2 {[%clk 0:01:48.9]} 21... Rfc8 {[%clk 0:02:40.9]} 22. Nc5 {[%clk
0:01:46.6]} 22... Nfd7 {[%clk 0:02:29.1]} 23. Bxb4 {[%clk 0:01:46.8]} 23... Nxc5
{[%clk 0:02:30.1]} 24. Bxc5 {[%clk 0:01:48.7]} 24... Nd7 {[%clk 0:02:21.9]} 25.
Bxa3 {[%clk 0:01:49.5]} 25... Ra6 {[%clk 0:02:20.5]} 26. Bb2 {[%clk 0:01:47.2]}
26... Rh6 {[%clk 0:02:21.3]} 27. h3 {[%clk 0:01:45.3]} 27... g5 {[%clk
0:02:21.2]} 28. d5 {[%clk 0:01:42.3]} 28... Bxd5 {[%clk 0:02:07.5]} 29. Qc3
{[%clk 0:01:43.4]} 29... f6 {[%clk 0:02:08.8]} 30. Qd4 {[%clk 0:01:40.6]} 30...
Be6 {[%clk 0:02:08.6]} 31. Ra7 {[%clk 0:01:40.8]} 31... Qc6 {[%clk 0:02:06.6]}
32. Rea1 {[%clk 0:01:37.7]} 32... Nc5 {[%clk 0:02:03.1]} 33. Rd1 {[%clk
0:01:15.3]} 33... g4 {[%clk 0:01:59.7]} 34. Qd8+ {[%clk 0:01:12.5]} 34... Qe8
{[%clk 0:02:00.5]} 35. Qxe8+ {[%clk 0:01:06.5]} 35... Rxe8 {[%clk 0:02:02.4]}
36. hxg4 {[%clk 0:01:07.5]} 36... Rg6 {[%clk 0:02:03.6]} 37. Rd6 {[%clk
0:01:02.7]} 37... Bxg4 {[%clk 0:02:01.2]} 38. Bxg4 {[%clk 0:01:00.2]} 38... Rxg4
{[%clk 0:02:03.1]} 39. Rxf6 {[%clk 0:00:53.4]} 39... Nd3 {[%clk 0:02:03.8]} 40.
Bd4 {[%clk 0:00:51.5]} 40... Ne1 {[%clk 0:02:04.1]} 41. Kf1 {[%clk 0:00:35.9]}
41... Nxg2 {[%clk 0:02:02.9]} 42. Rh6 {[%clk 0:00:31.2]} 42... Nh4 {[%clk
0:01:49]} 43. Raxh7 {[%clk 0:00:31.6]} 43... Nf3 {[%clk 0:01:47.7]} 44. Rh8+
{[%clk 0:00:33]} 44... Kf7 {[%clk 0:01:49.1]} 45. R6h7+ {[%clk 0:00:34.3]} 45...
Kg6 {[%clk 0:01:48.8]} 46. Rg7+ {[%clk 0:00:35.5]} 46... Kf5 {[%clk 0:01:50]}
47. Rxg4 {[%clk 0:00:33.8]} 47... Rxh8 {[%clk 0:01:44.5]} 48. Rf4+ {[%clk
0:00:34.9]} 48... Kg5 {[%clk 0:01:45.1]} 49. Bxh8 {[%clk 0:00:36.8]} 1-0

[Event "*** Titled Tuesday 3|2 Blitz"]
[Site "Chess.com"]
[Date "2017.06.06"]
[Round "9"]
[White "Hikaru"]
[Black "TenisMaster"]
[Result "1-0"]
[WhiteElo "2923"]
[BlackElo "2690"]
[TimeControl "180+2"]
[EndTime "15:49:01 PDT"]
[Termination "Hikaru won by resignation"]

1. d4 {[%clk 0:03:02]} 1... d5 {[%clk 0:02:56.4]} 2. c4 {[%clk 0:03:01]} 2... c6
{[%clk 0:02:57.2]} 3. Nf3 {[%clk 0:03:01.9]} 3... Nf6 {[%clk 0:02:58.2]} 4. Nc3
{[%clk 0:03:02.7]} 4... e6 {[%clk 0:02:59.2]} 5. Bg5 {[%clk 0:03:02.6]} 5...
Nbd7 {[%clk 0:03:00.3]} 6. e3 {[%clk 0:03:00.2]} 6... h6 {[%clk 0:03:01.1]} 7.
Bh4 {[%clk 0:02:58.1]} 7... g5 {[%clk 0:03:01.9]} 8. Bg3 {[%clk 0:02:58.6]} 8...
Nh5 {[%clk 0:03:03.6]} 9. Bd3 {[%clk 0:02:55.1]} 9... Nxg3 {[%clk 0:03:04.3]}
10. hxg3 {[%clk 0:02:57]} 10... Bg7 {[%clk 0:03:05.7]} 11. Qc2 {[%clk
0:02:56.7]} 11... Qe7 {[%clk 0:03:05.2]} 12. cxd5 {[%clk 0:02:57.6]} 12... exd5
{[%clk 0:02:59.6]} 13. Bf5 {[%clk 0:02:58]} 13... Nb6 {[%clk 0:02:55.3]} 14.
O-O-O {[%clk 0:02:53.7]} 14... Bxf5 {[%clk 0:02:37.4]} 15. Qxf5 {[%clk
0:02:55.6]} 15... Nc4 {[%clk 0:02:38]} 16. Qc2 {[%clk 0:02:55]} 16... Nd6 {[%clk
0:02:35.9]} 17. Rde1 {[%clk 0:02:54]} 17... f5 {[%clk 0:02:25.4]} 18. g4 {[%clk
0:02:53.9]} 18... fxg4 {[%clk 0:02:16.6]} 19. Nh2 {[%clk 0:02:54]} 19... Qe6
{[%clk 0:01:58.2]} 20. Nxg4 {[%clk 0:02:53.2]} 20... O-O-O {[%clk 0:01:52.4]}
21. f3 {[%clk 0:02:53.1]} 21... Kb8 {[%clk 0:01:45.4]} 22. Kb1 {[%clk 0:02:51]}
22... h5 {[%clk 0:01:37.7]} 23. Nf2 {[%clk 0:02:50.2]} 23... g4 {[%clk 0:01:38]}
24. Nd3 {[%clk 0:02:47.9]} 24... gxf3 {[%clk 0:01:36.8]} 25. gxf3 {[%clk
0:02:46.9]} 25... Nf5 {[%clk 0:01:24]} 26. Nd1 {[%clk 0:02:44.4]} 26... h4
{[%clk 0:01:18.5]} 27. Nc5 {[%clk 0:02:35]} 27... Qf7 {[%clk 0:01:18.6]} 28. f4
{[%clk 0:02:26.2]} 28... Bf8 {[%clk 0:01:15.7]} 29. Nd3 {[%clk 0:02:24.2]} 29...
Bd6 {[%clk 0:01:16.1]} 30. N1f2 {[%clk 0:02:24.3]} 30... Ng3 {[%clk 0:01:11.7]}
31. Rh3 {[%clk 0:02:22.9]} 31... Qf5 {[%clk 0:01:11]} 32. Ne5 {[%clk 0:02:23.5]}
32... Bxe5 {[%clk 0:01:09.4]} 33. dxe5 {[%clk 0:02:21.7]} 33... Qxc2+ {[%clk
0:00:58.6]} 34. Kxc2 {[%clk 0:02:23.6]} 34... Rdg8 {[%clk 0:00:58.2]} 35. Kd3
{[%clk 0:02:20.7]} 35... Nf5 {[%clk 0:00:49.3]} 36. e4 {[%clk 0:02:20.8]} 36...
dxe4+ {[%clk 0:00:50.3]} 37. Kxe4 {[%clk 0:02:21.3]} 37... Rh5 {[%clk
0:00:51.3]} 38. Rd1 {[%clk 0:02:16.6]} 38... Kc7 {[%clk 0:00:50.8]} 39. Rhd3
{[%clk 0:02:16.4]} 39... Rg3 {[%clk 0:00:40.5]} 40. Rxg3 {[%clk 0:02:13.2]}
40... hxg3 {[%clk 0:00:38.8]} 41. Ng4 {[%clk 0:02:13.6]} 41... Nh4 {[%clk
0:00:23.9]} 42. Nf6 {[%clk 0:02:05]} 42... Rh6 {[%clk 0:00:20.6]} 43. f5 {[%clk
0:01:56.3]} 43... g2 {[%clk 0:00:20.4]} 44. Rg1 {[%clk 0:01:56.7]} 44... Kd8
{[%clk 0:00:20]} 45. Kf4 {[%clk 0:01:56.7]} 45... Rh8 {[%clk 0:00:20.2]} 46. Kg4
{[%clk 0:01:53.5]} 46... Ke7 {[%clk 0:00:20.5]} 47. Ne4 {[%clk 0:01:54.5]} 47...
Kf7 {[%clk 0:00:16.8]} 48. Ng5+ {[%clk 0:01:55.1]} 48... Ke7 {[%clk 0:00:17]}
49. f6+ {[%clk 0:01:55.4]} 49... Kd7 {[%clk 0:00:17.8]} 50. e6+ {[%clk
0:01:55.7]} 50... Kd6 {[%clk 0:00:18.9]} 51. Nf7+ {[%clk 0:01:56.6]} 1-0

[Event "*** Titled Tuesday 3|2 Blitz"]
[Site "Chess.com"]
[Date "2017.06.06"]
[Round "9"]
[White "Quiet_Desperation"]
[Black "northridgehawk"]
[Result "1/2-1/2"]
[WhiteElo "1991"]
[BlackElo "2126"]
[TimeControl "180+2"]
[EndTime "15:49:07 PDT"]
[Termination "Game drawn by repetition"]

1. e4 {[%clk 0:02:30.8]} 1... e6 {[%clk 0:02:59.9]} 2. d4 {[%clk 0:02:31.7]}
2... d5 {[%clk 0:02:59.4]} 3. Nc3 {[%clk 0:02:32.5]} 3... Nf6 {[%clk 0:03:00.1]}
4. e5 {[%clk 0:02:32.9]} 4... Nfd7 {[%clk 0:02:59.4]} 5. f4 {[%clk 0:02:34.6]}
5... c5 {[%clk 0:03:00.9]} 6. Nf3 {[%clk 0:02:36.3]} 6... Nc6 {[%clk 0:03:02.2]}
7. Be3 {[%clk 0:02:37.9]} 7... cxd4 {[%clk 0:02:59.4]} 8. Nxd4 {[%clk
0:02:38.7]} 8... Bc5 {[%clk 0:03:01]} 9. Qd2 {[%clk 0:02:39.5]} 9... O-O {[%clk
0:03:01.4]} 10. O-O-O {[%clk 0:02:40.7]} 10... a6 {[%clk 0:03:01.4]} 11. h4
{[%clk 0:02:42]} 11... Nxd4 {[%clk 0:02:59.3]} 12. Bxd4 {[%clk 0:02:43]} 12...
b5 {[%clk 0:03:00.4]} 13. Kb1 {[%clk 0:02:43.2]} 13... b4 {[%clk 0:02:59]} 14.
Ne2 {[%clk 0:02:44.2]} 14... a5 {[%clk 0:03:00.1]} 15. h5 {[%clk 0:02:45.1]}
15... Ba6 {[%clk 0:03:00.7]} 16. Nc1 {[%clk 0:02:35.6]} 16... Qc7 {[%clk
0:03:00.5]} 17. Nb3 {[%clk 0:02:36.2]} 17... a4 {[%clk 0:02:48.8]} 18. Nxc5
{[%clk 0:02:35.7]} 18... Nxc5 {[%clk 0:02:50.7]} 19. h6 {[%clk 0:02:26.8]} 19...
g6 {[%clk 0:02:49.3]} 20. Bxa6 {[%clk 0:02:26.3]} 20... Rxa6 {[%clk 0:02:47.1]}
21. f5 {[%clk 0:02:15.9]} 21... exf5 {[%clk 0:02:36.8]} 22. Qxb4 {[%clk
0:02:16.5]} 22... Ne6 {[%clk 0:02:28.7]} 23. Qc3 {[%clk 0:01:57.8]} 23... Qb7
{[%clk 0:02:23.8]} 24. Rh3 {[%clk 0:01:40.3]} 24... Rc8 {[%clk 0:02:22.2]} 25.
Qd3 {[%clk 0:01:32.7]} 25... Rc4 {[%clk 0:02:18.9]} 26. Be3 {[%clk 0:01:21.3]}
26... Rb4 {[%clk 0:01:59.3]} 27. Bc1 {[%clk 0:01:10.6]} 27... Rab6 {[%clk
0:01:58.7]} 28. b3 {[%clk 0:01:08.5]} 28... axb3 {[%clk 0:01:55.8]} 29. cxb3
{[%clk 0:01:09.3]} 29... d4 {[%clk 0:01:56]} 30. Bb2 {[%clk 0:01:08.2]} 30...
Nf4 {[%clk 0:01:49.8]} 31. Qg3 {[%clk 0:01:01.8]} 31... Qe4+ {[%clk 0:01:48.5]}
32. Ka1 {[%clk 0:01:02.2]} 32... Nxh3 {[%clk 0:01:40.8]} 33. gxh3 {[%clk
0:01:02]} 33... Rxb3 {[%clk 0:01:32.2]} 34. Qg5 {[%clk 0:00:43.5]} 34... f6
{[%clk 0:00:43.8]} 35. Qc1 {[%clk 0:00:37.6]} 35... Rxb2 {[%clk 0:00:38.4]} 36.
Qc8+ {[%clk 0:00:36.2]} 36... Kf7 {[%clk 0:00:38.9]} 37. Qd7+ {[%clk 0:00:37.4]}
37... Kf8 {[%clk 0:00:38.7]} 38. Qd8+ {[%clk 0:00:30.4]} 38... Kf7 {[%clk
0:00:38.7]} 39. Qd7+ {[%clk 0:00:27.1]} 39... Kf8 {[%clk 0:00:40]} 40. Qd8+
{[%clk 0:00:20.9]} 40... Kf7 {[%clk 0:00:39.7]} 41. Qd7+ {[%clk 0:00:22.5]}
41... Kf8 {[%clk 0:00:40.6]} 42. Qd8+ {[%clk 0:00:24]} 1/2-1/2